[Event "29th Bosnjaci Open 2025"]
[Site "Bosnjaci"]
[Date "2025.01.06"]
[Round "5.1"]
[White "Kovac, Petar"]
[Black "Saric, Ante"]
[Result "0-1"]
[ECO "D02"]
[WhiteElo "2289"]
[BlackElo "2483"]
[Annotator "TA"]
[PlyCount "76"]
[EventDate "2025.01.04"]
[EventType "swiss"]
[EventCountry "CRO"]
[SourceTitle "playchess.com"]
[Source "ChessBase"]
[SourceQuality "1"]
[TimeControl "5400+30"]

{[%evp 9,76,4,11,8,17,12,19,0,0,0,0,18,17,-27,18,-41,-33,-34,-35,-114,-105,-112,-114,-126,-50,-109,-84,-80,-72,-81,-58,-54,-56,-44,-25,-8,-8,-17,-20,-139,-130,-141,-140,-239,-238,-239,-233,-394,-383,-404,-394,-387,-393,-451,-439,-649,-430,-785,-787,-995,-655,-1916,-1618,-2300,-2016,-29990,-29991,-29991,-29992]} 1. d4 {[%emt 0:00:02]} Nf6 {[%emt 0:00:07]} 2. Nf3 {[%emt 0:00:08]} d5 {[%emt 0:00:21]} 3. Bf4 {[%emt 0:00:26]} c5 {[%emt 0:00:33]} 4. e3 {[%emt 0:00:37]} Nc6 {[%emt 0:00:15]} 5. Nbd2 {[%emt 0:00:30]} cxd4 {[%emt 0:01:31]} 6. exd4 {[%emt 0:00:07]} Bf5 {[%emt 0:00:31]} 7. c3 {[%emt 0:01:41]} e6 {[%emt 0:00:15]} 8. Qb3 {[%emt 0:02:20] The position is equal.} Bd6 {[%emt 0:00:06]} 9. Qxb7 {[%emt 0:11:52]} Bxf4 {[%emt 0:00:07]} 10. Qxc6+ {[%emt 0:00:04]} Kf8 {[%emt 0:00:07]} 11. Ba6 {[%emt 0:04:19]} g6 {[%emt 0:07:43][%mdl 1024] Black has compensation.} 12. O-O {[%emt 0:10:30]} (12. g3 $11 Bxd2+ 13. Nxd2) 12... Kg7 {[%emt 0:01:04]} 13. Nb3 {[%emt 0:13:04]} Rb8 {[%emt 0:02:38]} 14. Rfe1 {[%emt 0:07:04]} (14. g3 $15) 14... h5 $17 {[%emt 0:11:51]} 15. Bf1 {[%emt 0:17:40]} Rb6 {[%emt 0:09:14]} (15... Be4 {is interesting.} 16. Be2 Ng4 17. h3 Rb6) 16. Qa4 {[%emt 0:00:55]} Qb8 {[%emt 0:00:13]} (16... Be4 $17 {aiming for ...Bxf3.} 17. Ne5 (17. Qxa7 $2 Ng4 $19) 17... Bxh2+ (17... Ng4 18. g3 $17) 18. Kxh2 Ng4+ 19. Kh3 Qg5 (19... Nxf2+ 20. Kg3 $11) 20. Qxa7 (20. f3 $2 h4 $19) 20... Nxf2+ 21. Kh2 Qf4+ 22. Kg1 Nh3+ 23. Kh1 Nf2+ 24. Kg1 Nh3+ 25. Kh1 Nf2+ 26. Kg1) 17. g3 {[%emt 0:04:11]} ({Better is} 17. Ne5 $1 $15) 17... Bd6 {[%emt 0:00:50][%cal Oh5h4]} (17... h4 {keeps more tension.} 18. Ne5 hxg3 19. fxg3 Bxe5 20. dxe5 Ng4) 18. Ne5 {[%emt 0:01:36]} h4 {[%emt 0:12:58]} 19. Re2 {[%emt 0:05:43]} hxg3 {[%emt 0:03:54]} 20. fxg3 {[%emt 0:02:09]} Be4 {[%emt 0:02:52]} 21. Bg2 $1 {[%emt 0:01:39]} Bxe5 {[%emt 0:13:37]} (21... Bxg2 {seems wilder.} 22. Kxg2 Rb7 23. Rf1 Ne4) 22. dxe5 {[%emt 0:00:06]} Qxe5 {[%emt 0:00:04]} 23. Bxe4 $1 {[%emt 0:03:03]} Nxe4 {[%emt 0:02:01]} 24. Qd4 {[%emt 0:01:51] Black continues to play with concentration.} (24. Qxa7 $11 {keeps the balance.} Rhb8 25. Nc5) 24... Qxd4+ {[%emt 0:00:55]} 25. cxd4 {[%emt 0:00:46]} Rhb8 {[%emt 0:01:23] Black is more active.} 26. Rc1 {[%emt 0:01:38]} (26. Rc2 $17 {was worth a try.}) 26... Ra6 $19 {[%emt 0:00:18]} 27. Rc7 {[%emt 0:08:46]} Rxa2 {[%emt 0:00:09]} 28. Nc5 {[%emt 0:00:13] [#]} (28. Nc1 Raxb2 (28... Rbxb2 $2 29. Rxb2 Rxb2 30. Nd3 $19) 29. Rxb2 Rxb2 30. Nd3) 28... Nxc5 $1 {[%emt 0:00:20]} ({Not} 28... Rbxb2 29. Rxb2 Rxb2 30. Nxe6+ Kf6 31. Nf4 $15) (28... Raxb2 29. Nxe6+ Kf6 30. Rxb2 Rxb2 31. Nd8 $11) 29. dxc5 {[%emt 0:00:06][%cal Oe2f2]} Rbxb2 {[%emt 0:00:07]} ({Don't do} 29... Raxb2 30. Rxe6 Rd2 31. Re1 $19) 30. Rxb2 {[%emt 0:00:07]} Rxb2 {[%emt 0:00:04]} 31. Rxa7 {[%emt 0:00:04][%mdl 4096] Endgame. KR-KR} Rc2 {[%emt 0:00:14]} 32. Rc7 {[%emt 0:00:11]} (32. g4 $142) 32... d4 {[%emt 0:01:10]} 33. h4 {[%emt 0:00:41]} (33. Rd7 $142 e5 (33... Rxc5 34. Rxd4 Rc1+ 35. Kg2 $17) 34. Rd5) 33... e5 {[%emt 0:01:15]} 34. Kf1 {[%emt 0:00:51]} Kf6 {[%emt 0:00:36]} 35. c6 {[%emt 0:01:29]} d3 {[%emt 0:05:23] [#] ...Rc1+ is the strong threat.} 36. Ke1 {[%emt 0:01:16]} e4 {[%emt 0:00:26] ( -> ...e3)} 37. g4 {[%emt 0:00:41]} e3 {[%emt 0:00:13][%cal Rc2c1]} 38. g5+ {[%emt 0:00:04]} Ke6 {[%emt 0:00:15] Weighted Error Value: White=0.98/Black=0.23 (precise) .  Mistake:       	White=8     	Black=1      Inaccurate:     	White=1     	Black=2      OK:         	White=7     	Black=8      Best:        	---       	Black=5      Strong:       	White=2     	Black=1} 0-1

[Event "29th Bosnjaci Open 2025"]
[Site "Bosnjaci"]
[Date "2025.01.06"]
[Round "5.2"]
[White "Culum, Sanjin"]
[Black "Hadzovic, Amir"]
[Result "0-1"]
[ECO "C75"]
[WhiteElo "2446"]
[BlackElo "2316"]
[Annotator "TA"]
[PlyCount "148"]
[EventDate "2025.01.04"]
[EventType "swiss"]
[EventCountry "CRO"]
[SourceTitle "playchess.com"]
[Source "ChessBase"]
[SourceQuality "1"]
[TimeControl "5400+30"]

{[%evp 55,148,30,35,27,43,30,34,36,57,65,82,91,78,65,111,95,142,133,131,50,50,50,40,55,42,9,10,0,0,0,0,0,0,0,0,0,0,0,0,-199,-183,-522,-614,-608,-624,-588,-630,-630,-638,-612,-623,-608,-601,-979,-553,-503,-546,-497,-311,-983,-983,-983,-912,-941,-677,-929,-955,-913,-960,-960,-179,-840,-962,-828,-975,-12779,-1554,-1554,-773,-12794,-326,-6299,-5122,-29986,-29987,-29987,-29988,-29988,-29989,-29989,-29990,-29996,-29997,-29997,-29998]} 1. e4 {[%emt 0:00:03]} e5 {[%emt 0:00:11]} 2. Nf3 {[%emt 0:00:06]} Nc6 {[%emt 0:00:09]} 3. Bb5 {[%emt 0:00:08]} a6 {[%emt 0:00:09]} 4. Ba4 {[%emt 0:00:05]} d6 {[%emt 0:00:07]} 5. O-O {[%emt 0:01:29]} Bd7 {[%emt 0:00:09]} 6. c3 {[%emt 0:03:46]} Nge7 {[%emt 0:00:06]} 7. d4 {[%emt 0:02:02]} Ng6 {[%emt 0:00:07]} 8. Be3 {[%emt 0:11:14]} Be7 {[%emt 0:01:02]} 9. Nbd2 {[%emt 0:00:11]} O-O {[%emt 0:00:21]} 10. Re1 {[%emt 0:02:37]} Kh8 {[%emt 0:05:44]} 11. h3 {[%emt 0:03:17]} Qe8 {[%emt 0:01:14]} 12. dxe5 {[%emt 0:13:13]} Ncxe5 {[%emt 0:03:41]} 13. Bxd7 {[%emt 0:00:58]} Qxd7 {[%emt 0:00:08]} 14. Nxe5 {[%emt 0:07:55]} Nxe5 {[%emt 0:00:08]} 15. Nf3 {[%emt 0:00:09]} Nxf3+ {[%emt 0:04:41]} 16. Qxf3 {[%emt 0:00:08]} Qb5 {[%emt 0:00:44]} 17. Qe2 {[%emt 0:05:25]} Qxe2 {[%emt 0:03:47]} 18. Rxe2 {[%emt 0:00:09]} Rae8 {[%emt 0:01:03]} 19. g4 {[%emt 0:10:00]} Bf6 {[%emt 0:02:04]} 20. f3 {[%emt 0:00:34]} g6 {[%emt 0:01:07]} 21. Rd1 {[%emt 0:05:05]} Bg7 {[%emt 0:04:09]} 22. Kf2 {[%emt 0:00:12]} Re6 {[%emt 0:02:26]} 23. Rd5 {[%emt 0:03:42]} Rfe8 {[%emt 0:01:07]} 24. c4 {[%emt 0:01:27]} Bf6 {[%emt 0:00:53]} 25. Red2 {[%emt 0:01:40]} Be5 {[%emt 0:01:19]} 26. c5 {[%emt 0:06:04]} Kg8 {[%emt 0:04:18]} 27. cxd6 {[%emt 0:02:36]} Bxd6 {[%emt 0:02:22]} 28. Bc5 {[%emt 0:01:38]} Bf4 {[%emt 0:01:59]} 29. R2d3 {[%emt 0:00:30]} b6 {[%emt 0:02:51]} 30. Bb4 {[%emt 0:02:38]} Be5 {[%emt 0:04:42]} 31. Bc3 {[%emt 0:00:26]} Bxc3 {[%emt 0:00:28]} 32. Rxc3 {[%emt 0:00:03]} c6 {[%emt 0:00:19]} 33. Rd7 {[%emt 0:02:06]} c5 {[%emt 0:04:11]} 34. Rcd3 {[%emt 0:04:07]} Kf8 {[%emt 0:05:43]} (34... R8e7 $14 {might be stronger.}) 35. Rb7 {[%emt 0:00:12]} R8e7 {[%emt 0:01:38]} (35... b5 $142) 36. Rd8+ $16 {[%emt 0:00:40]} Kg7 {[%emt 0:00:37]} 37. Rxe7 {[%emt 0:02:07]} (37. Rbb8 $16 {Threatens to win with g5.} Kh6 38. Kg3) 37... Rxe7 $14 {[%emt 0:00:04]} 38. Ra8 {[%emt 0:00:50]} a5 {[%emt 0:00:34]} 39. Rb8 {[%emt 0:00:04]} Re6 {[%emt 0:00:09]} 40. g5 {[%emt 0:00:17]} c4 {[%emt 0:03:53]} 41. Ke3 {[%emt 0:02:53]} Re5 $1 {[%emt 0:10:00]} 42. Rxb6 {[%emt 0:00:05]} Rxg5 {[%emt 0:00:03]} 43. a4 {[%emt 0:00:24]} Rh5 {[%emt 0:01:01]} 44. Rb5 {[%emt 0:00:24]} Rxh3 {[%emt 0:00:05]} 45. Rxa5 {[%emt 0:00:05]} h5 {[%emt 0:00:23]} 46. Rc5 {[%emt 0:00:52]} Rh2 {[%emt 0:00:17]} 47. Rb5 $2 {[%emt 0:00:58]} (47. a5 $11) 47... h4 $19 {[%emt 0:00:30]} 48. a5 $2 {[%emt 0:03:09]} (48. e5 {is tougher.}) 48... h3 $19 {[%emt 0:00:44]} 49. a6 {[%emt 0:00:30]} Rg2 {[%emt 0:06:49]} 50. a7 {[%emt 0:00:28]} h2 {[%emt 0:00:04]} 51. a8=Q {[%emt 0:00:03]} h1=Q {[%emt 0:00:06]} (51... h1=R 52. Rb8 Rh7 53. Rg8+ Kh6 54. Kf4 $18 (54. Rh8 Rxh8 55. Qxh8+ Kg5 $18)) 52. Kd4 {[%emt 0:03:03]} Rd2+ {[%emt 0:06:51]} 53. Kc5 {[%emt 0:00:10]} Qh5+ {[%emt 0:01:01]} 54. Kb6 {[%emt 0:00:36]} Qxf3 {[%emt 0:00:35]} 55. Qc6 {[%emt 0:02:09]} Qf2+ {[%emt 0:01:32]} 56. Kc7 {[%emt 0:00:36]} Qd4 {[%emt 0:02:44]} 57. e5 $2 {[%emt 0:00:52]} (57. Qd5) 57... Qd8+ $19 {[%emt 0:01:15]} ({Inferior is} 57... Rxb2 58. Qf6+ Kg8 59. Rxb2 Qxb2 60. Qd8+ Kg7 (60... Kh7 61. Qh4+ Kg8 62. Qd8+ Kg7 63. Qf6+ Kg8 64. Qd8+ $11) 61. Qf6+ Kg8 62. Qd8+ Kh7 63. Qh4+ Kg8 64. Qd8+ $11) 58. Kb7 {[%emt 0:00:01]} Rd7+ {[%emt 0:00:42]} 59. Ka6 {[%emt 0:00:01]} Rc7 {[%emt 0:00:49]} 60. Qf3 {[%emt 0:00:30]} Qe7 {[%emt 0:00:43]} 61. Kb6 {[%emt 0:00:56]} Rc8 {[%emt 0:01:25]} 62. Qd5 {[%emt 0:01:53]} Qc7+ {[%emt 0:01:05]} 63. Ka6 {[%emt 0:00:01]} c3 {[%emt 0:00:46]} 64. bxc3 {[%emt 0:00:40]} Qxc3 {[%emt 0:00:09]} 65. Kb6 {[%emt 0:01:11]} Qc7+ {[%emt 0:01:34]} (65... Qa3 $142 66. Ra5 Qb4+ 67. Rb5 Rb8+ 68. Ka6 Qxb5+ 69. Qxb5 Rxb5 70. Kxb5 g5) 66. Ka6 $19 {[%emt 0:00:00]} Qc6+ {[%emt 0:00:31]} (66... Re8 $142 67. Rc5 Qb8) 67. Ka5 {[%emt 0:00:31]} Ra8+ {[%emt 0:02:00]} 68. Kb4 {[%emt 0:00:00]} Qa6 {[%emt 0:00:17]} 69. Qf3 {[%emt 0:01:16]} Qa4+ {[%emt 0:01:00]} 70. Kc5 {[%emt 0:00:08]} Rc8+ {[%emt 0:00:04]} 71. Kb6 {[%emt 0:00:53]} Rb8+ {[%emt 0:00:07]} 72. Kc7 {[%emt 0:00:03]} Qxb5 {[%emt 0:00:15]} 73. Qxf7+ {[%emt 0:00:06]} Kxf7 {[%emt 0:00:10]} 74. e6+ {[%emt 0:00:02]} Kf6 {[%emt 0:00:05]} 0-1

[Event "29th Bosnjaci Open 2025"]
[Site "Bosnjaci"]
[Date "2025.01.06"]
[Round "5.3"]
[White "Zadravec, Matija"]
[Black "Pap, Misa"]
[Result "0-1"]
[ECO "B23"]
[WhiteElo "2283"]
[BlackElo "2436"]
[Annotator "TA"]
[PlyCount "98"]
[EventDate "2025.01.04"]
[EventType "swiss"]
[EventCountry "CRO"]
[SourceTitle "playchess.com"]
[Source "ChessBase"]
[SourceQuality "1"]
[TimeControl "5400+30"]

{[%evp 10,98,15,16,25,10,14,12,23,26,22,27,29,25,25,29,23,25,28,22,15,18,12,18,13,18,20,14,25,0,0,8,22,20,22,21,31,39,67,0,0,0,24,-2,0,0,-10,-3,-24,-81,-68,-54,0,0,0,0,0,-11,-12,-14,-12,-12,-12,-100,-100,-537,-480,-1026,-1274,-1000,-992,-5206,-5197,-5157,-5065,-2377,-1459,-5698,-5073,-29973,-29974,-29975,-29976,-29976,-29977,-29977,-29978,-29977,-29976,-29974,-29974]} 1. e4 {[%emt 0:00:04]} c5 {[%emt 0:05:26]} 2. Nc3 {[%emt 0:00:07]} Nc6 {[%emt 0:00:05]} 3. Bb5 {[%emt 0:00:05]} Nd4 {[%emt 0:01:12]} 4. Nf3 {[%emt 0:00:26]} Nxb5 {[%emt 0:00:05]} 5. Nxb5 {[%emt 0:00:10]} d6 {[%emt 0:00:06]} 6. d4 {[%emt 0:00:19]} Nf6 {[%emt 0:00:09]} 7. Nc3 {[%emt 0:00:29]} cxd4 {[%emt 0:00:15]} 8. Qxd4 {[%emt 0:00:02]} e5 {[%emt 0:00:14] The position is equal.} 9. Qd3 {[%emt 0:00:08]} h6 {[%emt 0:00:05] Prevents Bg5.} 10. Nd2 {[%emt 0:02:19]} Be6 {[%emt 0:05:06]} 11. Nc4 {[%emt 0:01:30]} Rc8 {[%emt 0:02:11]} 12. Ne3 {[%emt 0:00:14]} Be7 {[%emt 0:07:30]} 13. O-O {[%emt 0:00:58]} O-O {[%emt 0:00:05]} 14. Rd1 {[%emt 0:02:28]} Qc7 {[%emt 0:09:03]} 15. Bd2 {[%emt 0:11:16]} a6 {[%emt 0:07:45]} 16. a4 $1 {[%emt 0:01:01]} Bc4 {[%emt 0:07:58]} 17. Nxc4 {[%emt 0:00:33]} Qxc4 {[%emt 0:00:03]} 18. Be1 {[%emt 0:03:16]} Rfd8 {[%emt 0:07:50]} 19. Qxc4 {[%emt 0:11:56]} Rxc4 {[%emt 0:00:06]} 20. f3 {[%emt 0:00:05]} d5 {[%emt 0:04:54]} 21. exd5 {[%emt 0:12:24]} Bc5+ {[%emt 0:00:05]} 22. Kf1 {[%emt 0:01:42]} Bd4 {[%emt 0:00:26][%cal Od4c3]} 23. Rd3 {[%emt 0:01:38]} Nd7 {[%emt 0:22:38]} (23... Nxd5 24. Nxd5 Rxc2 (24... Rxd5 $2 25. c3 $18) 25. Ne3 (25. Ne7+ Kh7 $18) 25... Rxb2 26. Nc4 $18 (26. Nf5 Rc2 $18)) 24. Ra2 {[%emt 0:14:13]} (24. b3 $14 Rcc8 25. Rad1) 24... Nc5 $11 {[%emt 0:04:05]} 25. Rd1 {[%emt 0:01:14]} f6 {[%emt 0:00:29]} 26. Ne2 {[%emt 0:09:24]} Rxc2 {[%emt 0:02:56]} 27. Nxd4 {[%emt 0:00:05]} exd4 {[%emt 0:00:08]} 28. Rxd4 {[%emt 0:03:06]} Re8 {[%emt 0:01:31] And now ...Rc1 would win.} 29. Rd2 {[%emt 0:04:06]} (29. Rd1 $11 {keeps the balance.}) 29... Rc1 $17 {[%emt 0:01:09] Black has more active pieces.} 30. Re2 {[%emt 0:00:41]} Rxe2 {[%emt 0:00:10]} (30... Rd8 $1 $15) 31. Kxe2 $15 {[%emt 0:00:02][%mdl 4096] Endgame. KRB-KRN} Rc2+ {[%emt 0:00:09]} 32. Kf1 {[%emt 0:01:32]} Kf7 {[%emt 0:01:12]} 33. a5 {[%emt 0:10:52]} Nd3 {[%emt 0:01:04][%cal Oc2c1] Strongly threatening ...Rc1!} 34. Ra3 {[%emt 0:01:13]} Nxe1 {[%emt 0:00:27]} (34... Nxb2 $6 35. Rb3 $16) 35. Kxe1 {[%emt 0:00:02]} Rxb2 $11 {[%emt 0:00:11][%cal Of7e7] KR-KR} 36. Re3 {[%emt 0:00:40]} (36. Rc3 $11 {remains equal.}) 36... Rb5 $1 $17 {[%emt 0:01:27]} (36... Rxg2 37. d6 Rg5 38. Re7+ Kg6 39. Rxb7 $15) 37. d6 $2 {[%emt 0:00:18][%mdl 8192] [#] This costs White the game.} (37. Ra3 $17 {is tougher.}) 37... Re5 $1 $19 {[%emt 0:01:36]} 38. Rxe5 {[%emt 0:03:28]} (38. Kf2 $142 Rxe3 (38... Rxa5 39. Re7+ Kf8 40. Rxb7 $11) (38... Ke6 39. Ra3 $17) 39. Kxe3) 38... fxe5 {[%emt 0:00:05] KP-KP} 39. Kd2 {[%emt 0:00:53]} Ke6 {[%emt 0:00:05]} 40. Ke3 {[%emt 0:00:07]} Kxd6 {[%emt 0:00:07]} 41. Ke4 {[%emt 0:00:41]} Kc5 {[%emt 0:05:05]} 42. Kxe5 {[%emt 0:01:20]} Kb5 {[%emt 0:00:04]} 43. Kf5 {[%emt 0:00:07]} Kxa5 {[%emt 0:00:13]} 44. Kg6 {[%emt 0:00:08]} b5 {[%emt 0:00:04] Black mates.} 45. Kxg7 {[%emt 0:00:10] [#]} b4 $1 {[%emt 0:00:03]} 46. f4 {[%emt 0:00:07]} b3 {[%emt 0:00:03]} 47. f5 {[%emt 0:00:02]} b2 {[%emt 0:00:05]} 48. f6 {[%emt 0:00:04]} b1=Q {[%emt 0:00:05]} ({Not} 48... b1=R 49. g4 $11) 49. f7 {[%emt 0:00:19]} Qb2+ {[%emt 0:00:13] Weighted Error Value: White=0.70/Black=0.06 (flawless) .  Loses game:     	White=1     	---        Mistake:       	White=4     	Black=1      Inaccurate:     	White=1     	Black=1      OK:         	White=16    	Black=11     Best:        	White=1     	Black=2      Strong:       	White=1     	Black=2} 0-1

[Event "29th Bosnjaci Open 2025"]
[Site "Bosnjaci"]
[Date "2025.01.06"]
[Round "5.4"]
[White "Zaja, Ivan"]
[Black "Muratovic, Efim"]
[Result "1-0"]
[ECO "E51"]
[WhiteElo "2418"]
[BlackElo "2322"]
[Annotator "TA"]
[PlyCount "103"]
[EventDate "2025.01.04"]
[EventType "swiss"]
[EventCountry "CRO"]
[SourceTitle "playchess.com"]
[Source "ChessBase"]
[SourceQuality "1"]
[TimeControl "5400+30"]

{[%evp 16,103,17,28,22,0,3,17,57,58,53,61,59,58,76,78,63,68,53,64,71,29,19,32,70,67,71,60,82,62,50,22,32,11,22,9,14,0,4,2,2,0,11,11,66,72,63,64,64,59,54,57,54,50,60,8,12,16,12,21,29,0,0,5,5,0,82,87,109,81,150,151,168,179,159,138,193,163,653,654,626,608,7209,6953,29991,29992,29992,29993,29993,1195]} 1. d4 {[%emt 0:00:04]} Nf6 {[%emt 0:01:10]} 2. c4 {[%emt 0:00:04]} e6 {[%emt 0:00:25]} 3. Nc3 {[%emt 0:00:05]} Bb4 {[%emt 0:01:40]} 4. e3 {[%emt 0:00:54]} O-O {[%emt 0:02:07]} 5. Bd3 {[%emt 0:00:25]} d5 {[%emt 0:00:59]} 6. a3 {[%emt 0:00:21]} dxc4 {[%emt 0:08:07]} 7. Bxc4 {[%emt 0:00:07]} Be7 {[%emt 0:00:47]} 8. Nf3 {[%emt 0:02:26]} c5 {[%emt 0:06:13]} 9. O-O {[%emt 0:03:14]} a6 {[%emt 0:10:02]} 10. dxc5 {[%emt 0:08:38]} Bxc5 {[%emt 0:02:03]} 11. Qe2 {[%emt 0:00:58]} Nbd7 {[%emt 0:05:48]} 12. e4 {[%emt 0:02:38][%cal Be3e4,Be4e5][%mdl 32]} b5 {[%emt 0:05:27]} 13. Ba2 {[%emt 0:00:27]} Bb7 {[%emt 0:00:42]} 14. e5 {[%emt 0:00:56]} Nd5 {[%emt 0:07:25]} 15. Nxd5 {[%emt 0:02:20]} Bxd5 {[%emt 0:00:30]} 16. Bxd5 {[%emt 0:02:01]} exd5 {[%emt 0:00:01]} 17. Rd1 {[%emt 0:02:00]} (17. Qd3 Re8 18. Qxd5 Rc8 19. Bg5) 17... Nb6 {[%emt 0:00:47]} 18. Be3 {[%emt 0:14:02]} (18. Ng5 {feels hotter.} Qc8 19. Qd3 g6 20. Be3) 18... Bxe3 {[%emt 0:01:59]} 19. Qxe3 {[%emt 0:00:04]} Re8 {[%emt 0:05:03]} 20. b3 {[%emt 0:05:46]} Rc8 {[%emt 0:01:10]} 21. Rac1 {[%emt 0:01:37]} h6 {[%emt 0:09:57]} 22. h3 {[%emt 0:01:26] White is much more active.} Rxc1 {[%emt 0:05:41]} 23. Rxc1 {[%emt 0:01:06]} Nd7 {[%emt 0:00:16]} 24. Qd4 {[%emt 0:05:49]} Qb8 {[%emt 0:05:27][%cal Rd7e5]} 25. Re1 {[%emt 0:06:31]} Qb7 {[%emt 0:00:19]} 26. Rd1 {[%emt 0:05:40]} Qb8 {[%emt 0:05:55]} 27. Qxd5 {[%emt 0:00:39]} Nxe5 {[%emt 0:00:06]} 28. Nh4 {[%emt 0:00:29]} (28. Nxe5 {simplifies} Rxe5 29. Qd8+ Qxd8 30. Rxd8+ Kh7 31. Rd6) 28... Qc8 {[%emt 0:03:43]} 29. f4 {[%emt 0:03:26]} Nc6 {[%emt 0:00:01]} (29... g5 $1 $11) 30. Rc1 $14 {[%emt 0:01:02]} Re6 {[%emt 0:06:45]} 31. Nf5 {[%emt 0:00:41]} Qd8 $1 {[%emt 0:03:48]} 32. Qxd8+ {[%emt 0:00:54]} Nxd8 {[%emt 0:00:01][%mdl 4096] Endgame KRN-KRN} 33. Rc8 {[%emt 0:00:06]} Re1+ {[%emt 0:00:03][%cal Be6e1,Be1d1,Bd1d3][%mdl 32]} 34. Kf2 {[%emt 0:00:26]} Rd1 {[%emt 0:00:02]} 35. Ke3 {[%emt 0:04:04]} ({White should try} 35. Ke2 $14 Rd7 36. Ke3 (36. Ra8 g6 $14)) 35... Kh7 $11 {[%emt 0:00:22]} 36. Ra8 {[%emt 0:02:54]} Ne6 {[%emt 0:00:34]} 37. Rxa6 {[%emt 0:00:33]} Nc5 {[%emt 0:00:09]} 38. Ra7 {[%emt 0:00:47]} Rd3+ {[%emt 0:00:57]} 39. Ke2 {[%emt 0:00:52]} Rxb3 {[%emt 0:00:07]} 40. Rxf7 {[%emt 0:00:39]} Kg6 {[%emt 0:00:33] [#]} (40... Ne6 $1 $11 {keeps the balance.}) 41. Nd6 $1 $16 {[%emt 0:00:01]} Kh7 {[%emt 0:01:59][%cal Ob3g3]} 42. Ra7 {[%emt 0:06:59]} Ne6 {[%emt 0:01:15]} (42... b4 $142) 43. f5 {[%emt 0:01:42][%cal Bf4f5,Bf5f6][%mdl 32]} Nf4+ {[%emt 0:00:14]} 44. Kf2 {[%emt 0:00:34] And now f6 would win.} Kg8 {[%emt 0:00:11]} 45. Ra8+ {[%emt 0:00:32]} Kh7 {[%emt 0:00:15]} 46. Nf7 {[%emt 0:01:14][%csl Gf7][%cal Ra8h8]} g6 $2 {[%emt 0:00:21]} (46... g5 47. Ra6 Nd3+ 48. Kg1 Nf4) 47. f6 $18 {[%emt 0:00:27][%csl Gf7][%cal Ra8h8]} g5 {[%emt 0:00:09]} 48. Ne5 {[%emt 0:00:46]} Rb2+ {[%emt 0:02:13]} 49. Kf3 {[%emt 0:00:31] Threatening mate with Ra7+.} Nxg2 {[%emt 0:00:37]} 50. Ra7+ {[%emt 0:01:18]} Kg8 {[%emt 0:00:22]} 51. Rg7+ {[%emt 0:00:04]} Kf8 {[%emt 0:00:08]} 52. Ng6+ {[%emt 0:00:06]} 1-0

[Event "29th Bosnjaci Open 2025"]
[Site "Bosnjaci"]
[Date "2025.01.06"]
[Round "5.5"]
[White "Kovacevic, Blazimir"]
[Black "Vucenovic, Damian"]
[Result "1-0"]
[ECO "A14"]
[WhiteElo "2379"]
[BlackElo "2272"]
[Annotator "TA"]
[PlyCount "83"]
[EventDate "2025.01.04"]
[EventType "swiss"]
[EventCountry "CRO"]
[SourceTitle "playchess.com"]
[Source "ChessBase"]
[SourceQuality "1"]
[TimeControl "5400+30"]

{[%evp 11,83,14,14,-8,4,11,19,4,14,14,44,48,51,7,45,34,39,39,48,60,49,12,58,75,94,90,102,108,152,175,215,223,224,207,206,220,236,165,177,161,160,169,209,202,217,208,372,333,409,404,374,243,298,272,276,271,260,245,643,638,763,782,731,704,863,838,2624,2405,2517,2618,29985,29986,29995,29996]} 1. Nf3 {[%emt 0:00:04]} d5 {[%emt 0:00:18]} 2. g3 {[%emt 0:00:09]} Nf6 {[%emt 0:00:23]} 3. Bg2 {[%emt 0:00:08]} e6 {[%emt 0:00:28]} 4. O-O {[%emt 0:00:15]} Be7 {[%emt 0:00:50]} 5. c4 {[%emt 0:00:25]} O-O {[%emt 0:01:26]} 6. d3 {[%emt 0:01:17]} c5 {[%emt 0:06:23]} 7. Ne5 {[%emt 0:01:10]} Nbd7 {[%emt 0:05:09]} 8. Nxd7 {[%emt 0:00:34]} Bxd7 {[%emt 0:00:19]} 9. e4 {[%emt 0:00:49] The position is equal.} dxe4 {[%emt 0:09:01]} 10. dxe4 {[%emt 0:00:08]} Qc7 {[%emt 0:00:51] Repels e5} 11. Qe2 {[%emt 0:03:19]} Bc6 {[%emt 0:02:07]} 12. f4 {[%emt 0:02:51]} Ne8 {[%emt 0:06:19]} 13. Nc3 {[%emt 0:09:45]} Nd6 {[%emt 0:05:59]} 14. b3 {[%emt 0:04:20]} Rab8 {[%emt 0:11:14]} 15. Bb2 {[%emt 0:09:45]} a6 {[%emt 0:02:38]} 16. g4 {[%emt 0:10:44]} b5 {[%emt 0:05:46]} (16... f6 $11) 17. e5 $14 {[%emt 0:02:19]} Ne8 {[%emt 0:00:21] Black is now going downhill.} 18. Ne4 {[%emt 0:04:21]} bxc4 {[%emt 0:05:46]} 19. bxc4 {[%emt 0:00:04]} Bxe4 {[%emt 0:15:28]} 20. Bxe4 {[%emt 0:00:07]} f5 {[%emt 0:00:11]} 21. gxf5 {[%emt 0:01:36]} exf5 {[%emt 0:00:42]} 22. Bd5+ {[%emt 0:00:59]} Kh8 {[%emt 0:00:05] Black is weak on the light squares} 23. Bc3 {[%emt 0:00:41]} Qb6 {[%emt 0:00:31]} 24. Qd2 {[%emt 0:12:55]} Qh6 {[%emt 0:04:13]} 25. Ba5 {[%emt 0:16:38] Prevents Nc7. This pair of bishops is nice.} g5 {[%emt 0:04:44]} 26. Bc3 {[%emt 0:00:05] White is more active.} gxf4 {[%emt 0:05:13]} 27. Qxf4 {[%emt 0:04:55]} Qxf4 {[%emt 0:02:01]} 28. Rxf4 {[%emt 0:00:05]} Kg7 $2 {[%emt 0:02:55]} (28... h6 {keeps fighting.} 29. Kh1 Bg5) 29. Raf1 {[%emt 0:03:01]} Kg6 {[%emt 0:00:35]} 30. R4f3 {[%emt 0:00:28]} h6 {[%emt 0:01:19]} 31. e6 {[%emt 0:05:11]} (31. Rg3+ Kh7 32. Kh1 Rb6) 31... Bf6 {[%emt 0:01:22]} 32. Rxf5 {[%emt 0:03:11]} Bd4+ {[%emt 0:00:55]} 33. Bxd4 {[%emt 0:00:04]} Rxf5 {[%emt 0:00:03]} 34. Be4 {[%emt 0:00:14]} (34. Bxc5 Rxf1+ 35. Kxf1 Nf6 $11) 34... cxd4 {[%emt 0:01:13]} (34... Nd6 35. Bxf5+ Nxf5 36. Bxc5 h5) 35. Rxf5 $18 {[%emt 0:00:27][%mdl 4096] [#] Endgame. Rb5+ is the strong threat. KRB-KRN} ({Inferior is} 35. Bxf5+ Kf6 $11) 35... Kg7 {[%emt 0:00:38]} 36. Rf7+ {[%emt 0:00:33]} Kg8 {[%emt 0:00:14]} 37. Bd5 {[%emt 0:01:52]} Kh8 {[%emt 0:00:47]} 38. e7 {[%emt 0:01:14]} Kg8 {[%emt 0:00:23]} 39. Kf2 {[%emt 0:00:57] [#] aiming for Ke2.} Rb2+ {[%emt 0:00:21]} 40. Ke1 {[%emt 0:00:05] Strongly threatening Rf2+.} Nc7 {[%emt 0:00:45]} 41. Rf2+ {[%emt 0:00:34]} Nxd5 {[%emt 0:00:07]} 42. e8=Q+ {[%emt 0:00:07] Weighted Error Value: White=0.18 (very precise) /Black=0.68.  Mistake:       	---       	Black=3      Inaccurate:     	White=4     	Black=3      OK:         	White=11    	Black=6      Best:        	White=4     	Black=2} 1-0